bitfinex/quotes_ETHUSD_20260226
["timestamp","ask_amount","ask_price","bid_price","bid_amount"]
[1772141886285,0.49785141,2030.3,2030.0,0.03614743]
[1772141887283,0.001,2030.3,2030.0,0.03614743]
[1772141887485,0.001,2030.3,2030.1,0.03614743]
[1772141887985,0.001,2030.3,2030.0,0.03614743]
[1772141889184,0.001,2030.3,2030.0,1.26763947]
[1772141889361,0.001,2030.3,2030.1,0.03614743]
[1772141890590,0.001,2030.3,2029.9,1.26771253]
[1772141890776,0.001,2030.3,2030.0,0.03614743]
[1772141892890,0.001,2030.3,2030.0,1.2676622]
[1772141893586,0.001,2030.3,2030.0,0.03724743]
[1772141893771,0.001,2030.3,2030.0,1.2687714]
[1772141894395,0.001,2030.3,2030.0,0.03724743]
[1772141894692,0.001,2030.3,2030.0,1.26876728]
[1772141897690,0.48834528,2030.7,2030.3,0.03614743]
[1772141898104,0.48834528,2030.7,2030.2,0.03614743]
[1772141900703,0.48834528,2030.7,2030.2,1.26749462]
[1772141901097,1.71945306,2030.7,2030.2,1.26749462]
[1772141901284,0.48834528,2030.6,2030.2,1.26749462]
[1772141903702,0.48834528,2030.6,2030.2,1.67535528]
[1772141906208,0.48834528,2030.6,2030.4,0.001]
[1772141906501,0.002,2030.5,2030.4,0.001]
[1772141910509,0.002,2030.7,2030.4,0.03714743]
[1772141910714,0.48834528,2030.9,2030.4,0.27296866]
[1772141912510,0.48834528,2030.8,2030.4,1.50422552]
[1772141917207,0.48834528,2030.8,2030.4,0.27296866]
[1772141917722,0.48834528,2030.8,2030.4,1.50424873]
[1772141919821,0.48192628,2030.7,2030.4,0.001]
[1772141921120,0.48192628,2030.7,2030.6,0.001]
[1772141921614,1.71302885,2030.7,2030.6,0.001]
[1772141923823,0.48192628,2030.7,2030.6,0.001]
[1772141924625,1.71302885,2030.7,2030.6,0.001]
[1772141925635,1.71302885,2030.7,2030.2,1.540513]
[1772141925636,0.48142628,2030.6,2030.2,0.001]
[1772141925922,0.48142628,2030.4,2030.2,0.001]
[1772141927827,0.48142628,2030.3,2030.0,0.0011]
[1772141928123,0.48142628,2030.0,2029.8,0.0011]
[1772141930340,0.48142628,2030.3,2029.9,0.03714743]
[1772141932329,0.48142628,2030.2,2029.9,0.03714743]
[1772141935229,0.48142628,2030.2,2030.0,0.0011]
[1772141935412,0.001,2030.1,2030.0,0.0011]
[1772141936825,0.48242628,2030.1,2030.0,0.0011]
[1772141937029,2.14842628,2030.4,2030.1,0.03714743]
[1772141937199,0.48142628,2030.3,2030.0,0.0011]
[1772141937530,0.48142628,2030.3,2030.0,0.03824743]
[1772141939830,2.14842628,2030.4,2030.0,1.26974368]
[1772141940020,2.14842628,2030.4,2030.1,0.03714743]
[1772141941241,2.14842628,2030.4,2030.1,1.26858978]
[1772141941402,2.14842628,2030.4,2030.1,0.03714743]
[1772141942145,0.48142628,2030.5,2030.2,0.03714743]
[1772141942632,0.48142628,2030.5,2030.1,1.2314413]
[1772141942633,0.48142628,2030.5,2030.1,1.26858873]
[1772141943431,0.48142628,2030.5,2030.2,0.03714743]
[1772141944118,0.48142628,2030.5,2030.0,0.03824743]
[1772141946942,0.001,2030.3,2030.1,1.23146643]
[1772141949215,0.001,2030.3,2030.1,0.03714743]
[1772141949551,0.48142628,2030.7,2030.2,0.03714743]
[1772141949846,0.48142628,2030.7,2030.4,0.03714743]
[1772141950416,0.002,2030.8,2030.4,0.03714743]
[1772141950417,0.48342628,2030.8,2030.4,0.03714743]
[1772141953317,0.48342628,2030.8,2030.4,1.2683762]
[1772141953917,0.48342628,2030.8,2030.5,0.03714743]
[1772141958547,0.48342628,2030.8,2030.5,1.2683703]
[1772141958725,0.48342628,2030.8,2030.5,0.03714743]
[1772141959648,0.001,2030.6,2030.5,0.03714743]
[1772141960052,0.001,2030.6,2030.5,1.26837126]
[1772141960227,0.001,2030.6,2030.5,0.03714743]
[1772141964761,0.001,2030.6,2030.4,1.23123746]
[1772141965458,0.001,2030.6,2030.3,1.54151596]
[1772141965839,0.001,2030.6,2030.4,0.03714743]
[1772141966361,0.48242628,2030.6,2030.3,0.0011]
[1772141966670,0.48242628,2030.6,2030.3,1.26958936]
[1772141966871,0.001,2030.6,2030.4,0.03714743]
[1772141971205,0.001,2030.6,2030.5,0.001]
[1772141973486,0.002,2030.8,2030.6,0.03714743]
[1772141973681,0.48342628,2030.8,2030.5,0.001]
[1772141976851,0.48342628,2030.8,2024.5,5.147]
[1772141976852,0.48478008,2030.4,2029.8,0.0011]
[1772141977012,0.48478008,2030.4,2030.0,0.0022]
[1772141977759,0.48478008,2030.2,2030.0,0.0022]
[1772141978050,0.48478008,2030.3,2030.0,0.04034743]
[1772141978616,1.23128944,2030.4,2030.0,0.04034743]
[1772141978940,1.71606952,2030.4,2030.0,0.04034743]
[1772141979110,0.48478008,2030.3,2030.0,0.04034743]
[1772141979930,0.48092628,2030.2,2030.0,0.0022]
[1772141980150,0.48092628,2030.2,2030.0,0.0011]
[1772141982663,1.23142997,2030.2,2030.0,0.0011]
[1772141982877,0.48092628,2030.1,2030.0,0.0011]
[1772141985068,0.48092628,2030.1,2030.0,0.0022]
[1772141987676,0.48292628,2030.4,2030.0,0.04034743]
[1772141987844,1.71422623,2030.4,2030.1,0.03924743]
[1772141993182,1.71422623,2030.4,2030.1,0.0011]
[1772141995596,1.71422623,2030.4,2030.0,0.03924743]
[1772141995824,1.71422623,2030.4,2030.1,0.0011]
[1772141996474,1.71422623,2030.4,2030.0,0.03924743]
[1772141996674,1.71422623,2030.4,2030.2,0.0011]
[1772142004914,0.48092628,2030.3,2030.2,0.0011]
[1772142007914,0.48092628,2030.3,2030.2,0.0022]
[1772142008413,1.23317343,2030.6,2030.3,0.14546836]
[1772142008591,0.46291684,2030.6,2030.3,0.14546836]
[1772142008917,0.46291684,2030.6,2030.4,0.0011]
[1772142009714,1.69409621,2030.6,2030.4,0.0011]
[1772142010119,0.49617862,2030.5,2029.8,0.0011]
[1772142010291,0.49617862,2030.2,2029.4,0.14656836]
[1772142011116,0.49617862,2030.2,2029.6,0.14656836]
[1772142011909,1.72764505,2030.1,2029.7,0.14656836]
[1772142018920,0.49617862,2030.0,2029.7,0.14656836]
[1772142019923,0.49617862,2029.8,2028.7,0.14656836]
[1772142020112,0.49617862,2029.8,2029.3,0.14656836]
[1772142020715,1.72783877,2029.8,2029.3,1.37850168]
[1772142020917,1.72783877,2029.8,2029.4,0.14656836]
[1772142021698,1.72783877,2029.8,2029.5,0.0011]
[1772142022300,0.49617862,2029.8,2029.5,0.0011]
[1772142023226,1.72783252,2029.8,2029.5,0.0011]
[1772142023629,0.49617862,2029.5,2028.4,30.0]
[1772142023829,0.49617862,2028.4,2027.7,0.14656836]
[1772142024005,1.16460968,2028.3,2027.9,0.14656836]
[1772142024330,0.49617862,2028.4,2027.9,0.14656836]
[1772142026434,0.49617862,2028.3,2027.9,0.14656836]
[1772142027133,0.49617862,2028.3,2028.0,0.14656836]
[1772142027528,1.72865953,2028.5,2028.0,0.14656836]
[1772142028929,0.49617862,2028.5,2028.1,0.14656836]
[1772142029126,1.72861724,2028.5,2028.1,0.14656836]
[1772142029928,0.49617862,2028.5,2028.1,0.14656836]
[1772142030134,0.49617862,2028.9,2028.4,0.14656836]
[1772142030306,1.23224349,2028.9,2028.5,0.41915944]
[1772142030503,0.49617862,2028.8,2028.5,0.14656836]
[1772142031616,0.49617862,2028.8,2028.5,0.41915944]
[1772142032431,1.23220194,2028.9,2028.5,0.41915944]
[1772142032924,1.72838056,2028.9,2028.5,0.41915944]
[1772142033750,0.49617862,2028.9,2028.5,0.41915944]
[1772142035429,0.49617862,2028.9,2028.6,0.14656836]
[1772142035806,1.72838329,2028.9,2028.6,0.14656836]
[1772142037632,0.49617862,2028.9,2028.6,0.14656836]
[1772142038518,1.70657214,2029.1,2028.6,0.14656836]
[1772142038719,0.47449881,2029.0,2028.6,0.14656836]
[1772142039742,1.70665243,2029.0,2028.6,0.14656836]
[1772142042133,0.48486525,2028.9,2028.6,0.14656836]
[1772142044638,1.71706056,2028.9,2028.6,0.14656836]
[1772142046042,0.001,2028.7,2028.6,0.14656836]
[1772142049929,0.48486525,2029.2,2028.7,0.14656836]
[1772142050126,0.48486525,2029.2,2028.9,0.14656836]
[1772142051048,1.71688703,2029.2,2028.9,0.14656836]
[1772142057857,0.001,2029.0,2028.9,0.14656836]
[1772142058664,0.001,2029.0,2028.8,0.0011]
[1772142058955,0.001,2029.0,2028.8,0.14766836]
[1772142060563,2.99377643,2029.6,2028.8,0.14766836]
[1772142060564,0.48486525,2029.7,2029.0,0.14656836]
[1772142060763,0.48486525,2029.8,2029.5,0.27259108]
[1772142060966,0.48486525,2029.8,2029.5,0.41915944]
[1772142061132,0.48486525,2029.7,2028.9,0.27259108]
[1772142061334,0.48486525,2029.7,2029.1,0.41915944]
[1772142061534,0.48486525,2029.7,2029.2,0.14656836]
[1772142061836,1.2317698,2029.6,2029.2,0.14656836]
[1772142062036,1.71663505,2029.6,2029.2,0.14656836]
[1772142065668,1.23259098,2029.9,2029.6,0.14656836]
[1772142065956,0.48586525,2029.9,2029.6,0.14656836]
[1772142067867,0.001,2029.9,2029.8,0.14656836]
[1772142068772,0.48486525,2030.2,2029.9,0.14656836]
[1772142068947,1.71627975,2030.2,2029.9,0.14656836]
[1772142069268,0.48486525,2030.1,2029.8,0.14656836]
[1772142069769,1.2314145,2030.2,2029.8,0.14656836]
[1772142070170,0.45450225,2030.2,2029.8,0.14656836]
[1772142072770,1.68593337,2030.2,2029.8,0.14656836]
[1772142074168,0.45450225,2030.1,2029.7,0.27259108]
[1772142074465,0.45450225,2030.1,2029.6,0.14656836]
[1772142074850,1.68600559,2030.1,2029.6,0.14656836]
[1772142075056,1.68600559,2030.1,2029.7,0.14656836]
[1772142077772,0.45450225,2030.0,2029.7,0.14656836]
[1772142077973,0.45450225,2030.0,2029.5,1.37839573]
[1772142078192,0.45450225,2030.0,2029.6,0.14656836]
[1772142079167,1.68607328,2030.0,2029.6,0.14656836]
[1772142082196,1.68607328,2030.0,2029.8,0.0011]
[1772142087474,0.45450225,2029.9,2029.5,0.14766836]
[1772142088407,1.23157103,2030.0,2029.5,0.14766836]
[1772142088408,1.68615068,2029.8,2029.5,0.14766836]
[1772142088585,0.45450225,2029.8,2029.5,0.14766836]
[1772142089280,1.68612908,2029.9,2029.5,0.14766836]
[1772142094508,0.45450225,2029.8,2029.5,0.14766836]
[1772142096013,0.45450225,2029.8,2029.7,0.0011]
[1772142096384,0.45550225,2029.8,2029.7,0.0011]
[1772142098808,0.001,2029.8,2029.7,0.0011]
[1772142102809,0.001,2029.8,2029.7,0.14876836]
[1772142110418,0.001,2029.8,2029.7,0.0011]
[1772142111814,0.001,2029.8,2029.7,0.14876836]
[1772142114715,0.001,2029.8,2029.7,0.0011]
[1772142119447,0.001,2029.8,2029.7,0.14876836]
[1772142120328,4.92575414,2030.2,2029.7,0.14876836]
[1772142120329,0.46405407,2030.4,2029.8,0.14766836]
[1772142120695,0.46405407,2030.5,2030.0,0.14766836]
[1772142120891,0.002,2030.6,2030.2,0.14766836]
[1772142121116,0.002,2030.6,2030.4,0.14766836]
[1772142121317,0.46605407,2030.6,2030.2,1.37903577]
[1772142121511,0.46605407,2030.6,2030.3,0.14766836]
[1772142123021,0.46405407,2030.5,2030.0,0.14766836]
[1772142128043,1.69527901,2030.5,2030.1,0.14766836]
[1772142128646,0.46405407,2030.5,2030.1,0.14766836]
[1772142128829,1.69527883,2030.5,2030.1,0.14766836]
[1772142130141,0.46405407,2030.5,2030.1,0.14766836]
[1772142130646,0.002,2030.6,2030.2,0.14766836]
[1772142130819,0.48892368,2030.6,2030.2,0.14766836]
[1772142131213,1.72009057,2030.6,2030.2,0.14766836]
[1772142131425,0.48692368,2030.5,2030.2,0.14766836]
[1772142133346,0.48692368,2030.5,2030.2,1.37906243]
[1772142133550,0.48692368,2030.5,2030.2,0.14766836]
[1772142133748,0.001,2030.4,2030.2,0.14766836]
[1772142137850,0.001,2030.4,2030.3,0.14766836]
[1772142138555,0.001,2030.4,2030.2,1.3790664]
[1772142139552,0.001,2030.4,2030.2,0.14766836]
[1772142139854,0.001,2030.4,2030.2,1.3790721]
[1772142140028,0.001,2030.4,2030.0,4.92719959]
[1772142140229,0.001,2030.4,2030.1,1.63975392]
[1772142141752,0.5,2030.7,2030.3,0.40828749]
[1772142141924,0.41028749,2031.4,2030.6,0.40828749]
[1772142141925,0.5,2031.2,2030.6,0.40828749]
[1772142142129,0.48692368,2031.2,2030.9,0.88065862]
[1772142142452,0.48892368,2031.4,2030.9,0.88065862]
[1772142143156,0.48892368,2031.4,2031.0,0.47237113]
[1772142143528,0.48892368,2031.4,2031.1,0.40828749]
[1772142144554,0.48892368,2031.4,2031.1,0.88065862]
[1772142146433,0.48892368,2031.4,2031.1,2.11150647]
[1772142146634,0.002,2031.4,2031.2,0.47237113]
[1772142147737,0.48692368,2031.5,2031.2,0.47237113]
[1772142148242,1.71754252,2031.5,2031.2,0.47237113]
[1772142148741,0.48692368,2031.5,2031.2,0.47237113]
[1772142150254,0.002,2031.6,2031.3,0.47237113]
[1772142150454,0.002,2031.6,2031.3,0.88065862]
[1772142151354,0.002,2031.6,2031.5,0.27163512]
[1772142153864,0.48692368,2031.7,2031.5,0.27163512]
[1772142155464,0.002,2031.8,2031.5,0.27163512]
[1772142155465,0.48892368,2031.8,2031.5,0.27163512]
[1772142155946,0.48892368,2031.8,2031.5,0.74400625]
[1772142156983,0.48892368,2031.8,2031.5,1.9746154]
[1772142157147,0.48892368,2031.8,2031.5,0.74400625]
[1772142157565,0.48892368,2031.8,2031.5,1.97461828]
[1772142157766,0.48892368,2031.8,2031.5,0.74400625]
[1772142158965,0.45211612,2031.7,2031.2,1.84433868]
[1772142159268,0.45211612,2031.6,2031.2,2.59479636]
[1772142159446,0.45411612,2031.6,2031.2,2.59479636]
[1772142160162,0.45411612,2031.6,2031.5,0.001]
[1772142160540,0.002,2031.6,2031.5,0.001]
[1772142161756,0.002,2031.6,2031.5,0.49377191]
[1772142162476,0.002,2031.6,2031.5,0.001]
[1772142164780,0.002,2031.6,2031.5,0.49377191]
[1772142167378,0.002,2031.6,2031.5,0.001]
[1772142168476,0.002,2031.6,2031.2,3.08854841]
[1772142168477,0.47967826,2031.6,2031.2,3.08854841]
[1772142168857,0.47967826,2031.6,2031.3,0.49277191]
[1772142170283,0.47967826,2031.6,2031.3,1.995126]
[1772142170682,0.47967826,2031.6,2031.3,1.72349088]
[1772142172082,0.002,2031.4,2031.3,1.72349088]
[1772142176786,0.002,2031.4,2031.3,1.995126]
[1772142179785,0.002,2031.4,2031.3,1.72349088]
[1772142183489,0.002,2031.4,2031.2,3.08857024]
[1772142183664,0.47967826,2031.4,2031.2,2.59579833]
[1772142184367,0.47967826,2031.4,2031.2,1.365]
[1772142184563,0.47967826,2031.4,2031.2,2.59579747]
[1772142184769,0.47967826,2031.4,2031.3,0.001]
[1772142186509,0.002,2031.4,2031.3,0.001]
[1772142188573,0.47967826,2031.4,2031.3,0.001]
[1772142188889,0.47967826,2031.4,2031.2,1.365]
[1772142191805,0.47967826,2031.4,2031.2,2.59579742]
[1772142191979,0.002,2031.4,2031.2,3.05538751]
[1772142193597,0.002,2031.4,2031.2,1.82459009]
[1772142194407,0.002,2031.8,2031.4,0.45959009]
[1772142194604,0.002,2031.8,2031.7,0.27163512]
[1772142194809,0.002,2031.8,2031.6,0.45959009]
[1772142196492,0.002,2031.8,2031.5,1.96181254]
[1772142197220,0.47729114,2031.6,2031.5,0.001]
[1772142197392,0.47929114,2031.6,2031.5,0.001]
[1772142203122,0.47729114,2031.5,2031.2,0.001]
[1772142204727,0.47729114,2031.3,2031.2,0.001]
[1772142204898,0.47729114,2031.3,2031.0,0.001]
[1772142204899,1.23079952,2031.2,2031.0,0.001]
[1772142205094,0.47729114,2031.1,2031.0,0.002]
[1772142205621,0.47729114,2031.1,2031.0,0.001]
[1772142210097,0.47729114,2031.1,2031.0,0.002]
[1772142218631,0.46609926,2031.3,2031.0,0.002]
[1772142218829,0.46609926,2031.3,2031.0,0.45418713]
[1772142219228,0.46609926,2031.3,2031.0,0.002]
[1772142219536,0.46609926,2031.3,2031.0,0.47398023]
[1772142219740,0.002,2031.4,2031.1,0.47198023]
[1772142220116,0.002,2031.6,2031.3,0.47198023]
[1772142222037,0.002,2031.6,2031.4,0.47198023]
[1772142226136,0.49827824,2031.8,2031.5,0.47198023]
[1772142228938,0.49827824,2031.8,2031.5,1.70258079]
[1772142229145,0.002,2031.8,2031.6,0.47198023]
[1772142230643,0.002,2031.8,2031.6,1.70252051]
[1772142233015,0.002,2031.8,2031.6,0.47198023]
[1772142233742,0.002,2031.8,2031.7,0.001]
[1772142238859,0.002,2032.1,2031.8,0.47198023]
[1772142240558,0.49827824,2032.1,2031.8,0.47198023]
[1772142242176,0.49827824,2032.1,2031.7,0.4087642]
[1772142242455,0.49827824,2032.1,2031.7,0.001]
[1772142243365,0.49627824,2032.0,2031.7,0.001]
[1772142243666,0.49627824,2032.0,2031.7,0.47298023]
[1772142246060,0.002,2031.9,2031.7,0.47298023]
[1772142249577,0.002,2032.2,2031.9,0.45158292]
[1772142249867,0.002,2032.3,2031.9,0.45158292]
[1772142249868,0.47039411,2032.3,2031.9,0.85934712]
[1772142250848,0.47039411,2032.3,2032.0,1.23031496]
[1772142251059,0.47039411,2032.2,2031.9,0.45158292]
[1772142256147,0.002,2032.1,2031.9,0.45158292]
[1772142257976,0.002,2032.1,2031.9,0.45258292]
[1772142258278,0.002,2032.0,2031.9,0.45258292]
[1772142258451,0.002,2032.3,2032.0,0.45158292]
[1772142258777,0.002,2032.2,2032.0,0.45158292]
[1772142261480,0.47039411,2032.4,2032.1,0.4077642]
[1772142263079,0.47039411,2032.4,2032.1,1.63801622]
[1772142267382,0.47039411,2032.4,2032.1,2.08959914]
[1772142271789,0.47039411,2032.4,2032.1,2.09059914]
[1772142271959,0.002,2032.2,2032.1,2.09059914]
[1772142272683,0.002,2032.2,2032.1,0.001]
[1772142273059,0.47039411,2032.2,2032.1,0.001]
[1772142274695,0.002,2032.2,2032.1,0.001]
[1772142276172,0.002,2032.2,2032.1,0.27251605]
[1772142280195,0.002,2032.2,2032.1,0.76913108]
[1772142286320,0.002,2032.2,2032.1,0.49761503]
[1772142293509,0.002,2032.2,2032.1,0.001]
[1772142295714,0.47355662,2032.2,2032.0,0.001]
[1772142295893,0.47355662,2032.2,2031.8,0.001]
[1772142296100,0.47355662,2032.2,2031.8,0.002]
[1772142296416,0.47355662,2032.2,2031.8,0.001]
[1772142297817,0.47155662,2032.1,2031.8,0.001]
[1772142298894,0.47155662,2032.0,2031.6,0.001]
[1772142300247,0.47155662,2031.8,2031.6,0.001]
[1772142300461,1.23037551,2031.9,2031.4,0.001]
[1772142300462,0.47155662,2031.6,2031.4,0.001]
[1772142300955,0.47155662,2031.4,2031.2,0.001]
[1772142301241,0.47155662,2031.4,2031.0,0.001]
[1772142302045,0.47155662,2031.4,2031.0,0.27251605]
[1772142302347,0.47155662,2031.4,2031.0,0.76913108]
[1772142302745,1.70223883,2031.4,2031.0,0.76913108]
[1772142302946,0.47155662,2031.3,2031.0,0.76913108]
[1772142303448,1.70221663,2031.5,2031.1,0.49661503]
[1772142303653,0.47155662,2031.5,2031.1,0.49661503]
[1772142303952,1.70217707,2031.5,2031.1,0.49661503]
[1772142304246,0.47155662,2031.4,2031.1,0.49661503]
[1772142306143,0.47155662,2031.3,2031.0,0.49761503]
[1772142308363,0.47155662,2031.3,2031.0,0.001]
[1772142312452,0.47155662,2031.3,2031.2,0.001]
[1772142312965,0.47355662,2031.3,2031.2,0.001]
[1772142320685,0.47497604,2031.2,2030.8,1.23104023]
[1772142320988,0.47497604,2031.0,2030.4,0.46037357]
[1772142323081,0.47497604,2030.8,2030.4,0.46037357]
[1772142324587,0.47497604,2030.8,2030.6,0.001]
[1772142324987,1.2311632,2030.6,2030.2,0.46037357]
[1772142325199,0.47497604,2030.5,2030.2,0.46037357]
[1772142325714,0.47497604,2030.5,2030.0,0.0011]
[1772142325715,0.47497604,2030.4,2030.0,0.0011]
[1772142327291,0.47497604,2030.3,2030.0,0.0011]
[1772142327597,1.23131778,2030.4,2030.0,0.0011]
[1772142327598,1.70601799,2030.8,2030.2,0.45927357]
[1772142327765,0.47497604,2030.7,2030.2,0.45927357]
[1772142327964,0.47497604,2030.7,2030.1,0.73078962]
[1772142328872,0.47497604,2030.7,2030.1,0.45927357]
[1772142329495,0.47497604,2030.5,2030.1,0.45927357]
[1772142330436,0.47497604,2030.5,2030.2,0.45927357]
[1772142332527,1.7062067,2030.5,2030.2,0.45927357]
[1772142332909,0.47497604,2030.5,2030.2,0.45927357]
[1772142336420,0.47497604,2030.5,2030.2,1.69067517]
[1772142336616,1.70441419,2030.6,2030.3,0.0011]
[1772142336940,0.47325099,2030.6,2030.3,0.0011]
[1772142337643,0.47325099,2030.6,2030.3,0.47196317]
[1772142338941,1.7043398,2030.8,2030.3,0.47196317]
[1772142339425,0.47325099,2030.7,2030.3,0.47196317]
[1772142341345,1.70435748,2030.7,2030.3,0.47196317]
[1772142342739,0.46576039,2030.6,2030.3,0.47196317]
[1772142343472,0.46576039,2030.5,2030.0,0.49350271]
[1772142343636,0.46576039,2030.5,2030.0,0.0011]
[1772142344853,0.46576039,2030.5,2030.0,0.49350271]
[1772142345747,1.69704486,2030.4,2030.0,0.49350271]
[1772142348467,0.46576039,2030.3,2030.2,0.0011]
[1772142348749,0.46676039,2030.3,2030.2,0.0011]
[1772142349141,0.46676039,2030.3,2029.9,0.0011]
[1772142350161,0.46676039,2030.3,2030.1,0.49240271]
[1772142350162,0.001,2030.3,2030.1,0.49240271]
[1772142351156,0.46576039,2030.7,2030.3,0.49240271]
[1772142352029,1.69672576,2031.0,2030.5,0.49240271]
[1772142352233,1.69672576,2031.0,2030.1,1.23144385]
[1772142352234,1.69668231,2031.0,2030.6,0.90042301]
[1772142352433,0.46576039,2030.9,2030.6,0.49240271]
[1772142352931,0.46576039,2030.9,2030.1,2.56139808]
[1772142352932,0.46576039,2030.7,2030.2,0.49240271]
[1772142354565,0.46576039,2030.9,2030.3,0.49240271]
[1772142354864,0.46576039,2030.9,2030.6,0.49240271]
[1772142359067,0.46576039,2030.8,2030.4,0.49240271]
[1772142359863,1.69679885,2030.9,2030.4,0.49240271]
[1772142360268,0.46576039,2030.9,2030.4,0.49240271]
[1772142360763,0.001,2030.7,2030.4,0.49240271]
[1772142361354,0.001,2030.7,2030.5,0.49240271]
[1772142361967,0.001,2030.7,2030.5,0.90042301]
[1772142362138,1.69867703,2031.1,2030.8,0.49240271]
[1772142362837,1.23291664,2031.1,2030.8,0.49240271]
[1772142363042,0.002,2031.1,2030.8,0.49240271]
[1772142363660,0.002,2031.1,2030.9,0.49240271]
[1772142368564,0.46576039,2031.0,2030.2,0.49350271]
[1772142368749,0.46576039,2031.0,2030.5,0.49240271]
[1772142372878,0.46576039,2031.0,2030.7,0.001]
[1772142373075,0.49328392,2030.9,2030.7,0.001]
[1772142373250,0.49528392,2030.9,2030.7,0.001]
[1772142374275,0.49528392,2030.9,2030.5,0.001]
[1772142375177,0.49328392,2030.7,2030.5,0.001]
[1772142379277,1.72441419,2030.7,2030.5,0.001]
[1772142379459,1.23109339,2030.8,2030.5,0.001]
[1772142379774,0.002,2031.1,2030.7,0.49103035]
[1772142380169,0.49328392,2031.0,2030.7,0.49103035]
[1772142381684,0.49528392,2031.1,2030.8,0.49103035]
[1772142381977,0.002,2031.3,2030.9,0.49103035]
[1772142382282,1.72602677,2031.3,2030.9,0.49103035]
[1772142385284,0.002,2031.3,2031.0,0.49103035]
[1772142385580,0.002,2031.3,2031.1,0.49103035]
[1772142386878,0.002,2031.3,2030.9,0.49103035]
[1772142386879,0.49528392,2031.3,2030.9,0.49103035]
[1772142389282,0.49528392,2031.3,2030.9,1.72200982]
[1772142389482,0.002,2031.6,2031.3,0.49103035]
[1772142389657,1.23256318,2031.6,2031.3,0.49103035]
[1772142389860,0.49528392,2031.6,2031.3,0.49103035]
[1772142392390,0.002,2031.6,2031.4,0.89905065]
[1772142392565,0.49328392,2032.0,2031.5,0.49103035]
[1772142393057,0.002,2032.3,2031.9,0.49103035]
[1772142393256,1.725423,2032.3,2031.9,0.49103035]
[1772142393587,0.49328392,2032.2,2031.5,0.49103035]
[1772142393965,0.002,2032.3,2031.7,0.49103035]
[1772142394171,1.72541746,2032.3,2031.7,0.49103035]
[1772142394583,1.72541746,2032.3,2031.9,0.49103035]
[1772142397484,1.72541746,2032.3,2031.9,0.49203035]
[1772142397876,0.002,2032.0,2031.9,0.49203035]
[1772142399804,0.002,2032.0,2031.9,0.001]
[1772142400567,0.4808039,2031.9,2031.7,0.001]
[1772142400763,0.4808039,2031.9,2031.4,0.001]
[1772142401267,0.4808039,2031.9,2031.4,0.45693354]
[1772142401468,0.27356576,2032.0,2031.5,0.7274993]
[1772142401469,0.4808039,2031.8,2031.5,0.7274993]
[1772142401998,0.4808039,2031.8,2031.5,0.45593354]
[1772142406097,1.71126026,2031.8,2031.5,0.45593354]
[1772142406403,0.4808039,2031.8,2031.5,0.45593354]
[1772142407899,0.002,2032.4,2031.9,0.47943362]
[1772142408100,0.002,2032.6,2032.4,0.47943362]
[1772142408503,0.002,2032.6,2032.4,0.75099938]
[1772142409391,0.002,2032.6,2032.4,0.47943362]
[1772142410007,0.002,2032.6,2032.5,0.47943362]
[1772142410415,0.04313276,2032.6,2032.2,0.47943362]
[1772142413032,0.04113276,2032.5,2032.0,0.47943362]
[1772142413221,0.04113276,2032.5,2031.9,0.001]
[1772142414426,0.04113276,2032.5,2031.7,0.001]
[1772142415229,0.04013276,2032.3,2031.7,0.48093362]
[1772142417632,1.27032663,2032.2,2031.7,0.48093362]
[1772142417826,0.04013276,2032.1,2031.7,0.48093362]
[1772142418428,0.04013276,2032.1,2031.4,0.001]
[1772142419921,1.23031496,2032.0,2031.4,0.001]
[1772142420246,0.04013276,2031.9,2031.4,0.001]
[1772142423047,0.04013276,2031.7,2031.6,0.001]
[1772142424567,1.27056882,2031.8,2031.6,0.001]
[1772142431052,6.88080749,2032.1,2031.6,0.48093362]
[1772142431053,2.95842749,2032.1,2031.6,0.48093362]
[1772142433048,2.95842749,2032.1,2031.7,0.47993362]
[1772142435026,1.27042749,2032.1,2031.7,0.47993362]
[1772142435253,1.27042749,2032.1,2031.8,0.001]
[1772142435641,1.27042749,2032.1,2031.8,0.48093362]
[1772142435841,0.002,2032.0,2031.8,0.48093362]
[1772142439362,2.9281818,2032.3,2031.9,0.47893362]
[1772142444570,2.92814674,2032.3,2031.9,0.47893362]
[1772142445282,1.698,2032.3,2031.9,0.47893362]
[1772142445443,1.23212065,2032.4,2032.1,0.47793362]
[1772142446692,0.002,2032.4,2032.1,0.47793362]
[1772142446994,0.04413276,2032.1,2031.8,0.47893362]
[1772142447985,0.04413276,2032.1,2032.0,0.001]
[1772142448146,0.04413276,2032.1,2031.8,0.47893362]
[1772142448655,1.23025441,2032.1,2031.8,0.47893362]
[1772142451780,1.23223979,2032.2,2031.8,0.47893362]
[1772142452083,1.23211981,2032.4,2032.0,0.47760735]
[1772142455461,0.04613276,2032.2,2031.8,0.47860735]
[1772142456071,1.54812708,2032.1,2031.8,0.47860735]
[1772142456390,1.27638717,2032.1,2031.8,0.47860735]
[1772142457292,1.27637346,2032.2,2031.8,0.47860735]
[1772142459876,1.27637346,2032.2,2032.0,0.001]
[1772142460076,1.27837346,2032.2,2032.0,0.001]
[1772142463012,1.23219953,2032.2,2032.0,0.001]
[1772142463292,0.002,2032.2,2032.0,0.49860424]
[1772142464191,0.002,2032.4,2032.1,0.49760424]
[1772142464482,0.002,2032.4,2032.0,0.40841017]
[1772142464483,1.23189522,2032.7,2032.3,0.49760424]
[1772142464689,0.002,2032.7,2032.3,0.49760424]
[1772142464994,0.002,2032.7,2032.4,0.49760424]
[1772142466394,0.05013276,2032.7,2032.4,0.49760424]
[1772142466795,0.05013276,2032.7,2032.2,0.49760424]
[1772142467095,1.28008089,2032.7,2032.2,0.49760424]
[1772142468897,0.002,2032.7,2032.3,0.49760424]
[1772142471204,0.05013276,2032.7,2032.3,0.49760424]
[1772142471585,1.28007362,2032.7,2032.4,0.001]
[1772142471995,0.002,2032.5,2032.4,0.49860424]
[1772142480116,0.05013276,2032.5,2032.2,0.001]
[1772142480496,1.27820558,2032.4,2032.2,0.001]
[1772142482192,0.14415369,2032.3,2032.0,0.001]
[1772142483024,1.37434756,2032.2,2032.0,0.001]
[1772142484299,0.14415369,2032.2,2032.0,0.001]
[1772142484522,1.37433427,2032.3,2032.0,0.46766387]
[1772142485125,0.14415369,2032.2,2032.0,0.001]
[1772142486118,0.14415369,2032.3,2032.0,0.46766387]
[1772142487130,0.002,2032.5,2032.2,0.40741017]